lending/lending_fUSD_20250425
["ID","MTS","AMOUNT","RATE_DAILY","PERIOD"]
[358912196,1745544951502,-500.0,0.00045906,120]
[358912197,1745544951529,-500.0,0.00045906,120]
[358912198,1745544951556,-500.0,0.00045906,120]
[358912199,1745544951582,-500.0,0.00045906,120]
[358912200,1745544951609,-500.0,0.00045906,120]
[358912201,1745544951635,-500.0,0.00045906,120]
[358912202,1745544951661,-500.0,0.00045906,120]
[358912203,1745544951687,-500.0,0.00045906,120]
[358912204,1745544951714,-500.0,0.00045906,120]
[358912205,1745544951739,-500.0,0.00045906,120]
[358912206,1745544951767,-500.0,0.00045906,120]
[358912207,1745544951793,-500.0,0.00045906,120]
[358912208,1745544951820,-500.0,0.00045906,120]
[358912209,1745544951849,-500.0,0.00045906,120]
[358912210,1745544951875,-500.0,0.00045906,120]
[358912211,1745544951904,-500.0,0.00045906,120]
[358912212,1745544951930,-500.0,0.00045906,120]
[358912213,1745544951956,-500.0,0.00045906,120]
[358912214,1745544951981,-500.0,0.00045906,120]
[358912215,1745544952006,-500.0,0.00045906,120]
[358912216,1745544952032,-500.0,0.00045906,120]
[358912217,1745544952058,-799.0,0.00045906,120]
[358912218,1745544952084,-500.0,0.00045908,30]
[358912219,1745544952112,-500.0,0.00045908,30]
[358912220,1745544952144,-20930.03047775,0.00045913,31]
[358912221,1745544952200,-1703.0,0.0004594,30]
[358912222,1745544952224,-571.0,0.00045959,90]
[358912223,1745544952250,-503.12,0.00045998,30]
[358912224,1745544952277,-500.0,0.00045999,30]
[358912225,1745544952302,-500.0,0.00045999,30]
[358912226,1745544952329,-200.0,0.00046,79]
[358912227,1745544952355,-200.0,0.00046,79]
[358912228,1745544952380,-171.95875566,0.00046,120]
[358912229,1745544952408,-1800.0,0.00046,47]
[358912230,1745544952434,-2756.19002271,0.00046,120]
[358912231,1745544952459,-2301.13194882,0.00046,120]
[358912232,1745544952484,-753.29525078,0.0004604,30]
[358912233,1745544952510,-225.06649,0.00046088,30]
[358912234,1745544952536,-150.0,0.00046091,120]
[358912235,1745544952564,-4629.49,0.000461,60]
[358912236,1745544952589,-207.3,0.000461,40]
[358912237,1745544952615,-207.3,0.000461,40]
[358912238,1745544952884,-207.3,0.000461,40]
[358912239,1745544952913,-500.0,0.00046138,30]
[358912240,1745544952939,-607.66071158,0.00046138,30]
[358912241,1745544952966,-500.0,0.00046147,30]
[358912242,1745544952992,-571.0,0.00046233,90]
[358912243,1745544953019,-150.0,0.00046254,120]
[358912244,1745544953044,-225.06649,0.00046288,30]
[358912245,1745544953070,-150.0,0.00046289,120]
[358912246,1745544953096,-150.0,0.00046356,30]
[358912247,1745544953121,-1703.0,0.00046414,30]
[358912248,1745544953145,-261.94031645,0.00046414,60]
[358912249,1745544953170,-225.06649,0.00046488,30]
[358912250,1745544953206,-216.14,0.000465,42]
[358912251,1745544953238,-216.14,0.000465,42]
[358912252,1745544953270,-216.14,0.000465,42]
[358912253,1745544953300,-216.14,0.000465,42]
[358912254,1745544953332,-216.14,0.000465,42]
[358912255,1745544953366,-216.14,0.000465,42]
[358912256,1745544953396,-216.14,0.000465,42]
[358912257,1745544953427,-216.14,0.000465,42]
[358912258,1745544953457,-216.14,0.000465,42]
[358912259,1745544953486,-216.14,0.000465,42]
[358912260,1745544953518,-216.14,0.000465,42]
[358912261,1745544953550,-216.14,0.000465,42]
[358912262,1745544953582,-216.14,0.000465,42]
[358912263,1745544953615,-216.14,0.000465,42]
[358912264,1745544953647,-216.14,0.000465,42]
[358912265,1745544953678,-216.14,0.000465,42]
[358912266,1745544953704,-571.0,0.00046507,90]
[358912267,1745544953732,-4988.98,0.000466,60]
[358912268,1745544953759,-150.0,0.0004665,120]
[358912269,1745544953785,-211.0,0.0004665,30]
[358912270,1745544953819,-225.06649,0.00046688,30]
[358912271,1745544953847,-150.0,0.00046771,120]
[358912272,1745544953874,-150.0,0.00046792,120]
[358912273,1745544953900,-33580.54175562,0.000468,120]
[358912274,1745544953926,-2110.0,0.00046815,30]
[358912275,1745544953953,-301.32,0.00046846,30]
[358912276,1745544953978,-1071.0,0.00046849,30]
[358912277,1745544954003,-150.0,0.00046849,30]
[358912278,1745544954028,-450.34,0.00046851,30]
[358912279,1745544954053,-2302.16,0.00046851,30]
[358912280,1745544954078,-323.5,0.00046851,30]
[358912281,1745544954103,-150.0,0.00046851,30]
[358912282,1745544954127,-702.4,0.00046851,30]
[358912283,1745544954151,-462.53,0.00046851,30]
[358912284,1745544954176,-359.66,0.00046851,30]
[358912285,1745544954200,-153.91,0.00046851,30]
[358912286,1745544954225,-450.34,0.00046851,30]
[358912287,1745544954248,-351.2,0.00046851,30]
[358912288,1745544954273,-150.0,0.00046851,30]
[358912289,1745544954298,-450.34,0.00046851,30]
[358912290,1745544954322,-351.2,0.00046851,30]
[358912291,1745544954347,-450.34,0.00046851,30]
[358912292,1745544954371,-351.2,0.00046851,30]
[358912293,1745544954395,-450.34,0.00046851,30]
[358912294,1745544954419,-351.2,0.00046851,30]
[358912295,1745544954444,-351.2,0.00046851,30]
[358912296,1745544954469,-1703.0,0.00046887,30]
[358912297,1745544954495,-225.06649,0.00046888,30]
[358912298,1745544954521,-150.0,0.00046897,120]
[358912299,1745544954547,-150.0,0.00046901,120]
[358912300,1745544954575,-200.0,0.00047,82]
[358912301,1745544954601,-200.0,0.00047,82]
[358912302,1745544954626,-1800.0,0.00047,48]
[358912303,1745544954654,-4629.49,0.00047,60]
[358912304,1745544954679,-500.0,0.00047178,30]
[358912305,1745544954704,-500.0,0.00047178,30]
[358912306,1745544954729,-999.16,0.00047178,30]
[358912307,1745544954756,-3592.49,0.00047265,120]
[358912308,1745544954783,-222.71815076,0.00047275,120]
[358912309,1745544954814,-2110.0,0.00047315,30]
[358912310,1745544954840,-150.0,0.00047326,120]
[358912311,1745544954866,-150.0,0.00047342,30]
[358912312,1745544954894,-150.0,0.00047358,120]
[358912313,1745544954922,-1703.0,0.00047361,30]
[358912314,1745544954949,-582.43101475,0.00047361,30]
[358912315,1745544954977,-150.0,0.00047374,120]
[358912316,1745544955004,-150.0,0.00047375,120]
[358912317,1745544955031,-500.0,0.00047452,30]
[358912318,1745544955056,-571.0,0.00047682,90]
[358912319,1745544955082,-150.0,0.00047683,120]
[358912320,1745544955108,-4988.98,0.000477,60]
[358912321,1745544955135,-150.0,0.00047719,120]
[358912322,1745544955162,-500.0,0.00047726,30]
[358912323,1745544955187,-2110.0,0.00047815,30]
[358912324,1745544955212,-1703.0,0.00047835,30]
[358912325,1745544955238,-150.0,0.00047836,30]
[358912326,1745544955264,-211.0,0.0004798,30]
[358912327,1745544955289,-500.0,0.00048,30]
[358912328,1745544955318,-355.0,0.00048,120]
[358912329,1745544955343,-200.0,0.00048,85]
[358912330,1745544955367,-200.0,0.00048,85]
[358912331,1745544955391,-1800.0,0.00048,49]
[358912332,1745544955416,-2756.19002271,0.00048,120]
[358912333,1745544955440,-2301.13194882,0.00048,120]
[358912334,1745544955464,-1515.0,0.000481,120]
[358912335,1745544955490,-633.0,0.000481,120]
[358912336,1745544955515,-300.0,0.000482,30]
[358912337,1745544955542,-150.0,0.00048212,120]
[358912338,1745544955568,-500.0,0.00048274,30]
[358912339,1745544955594,-1703.0,0.00048308,30]
[358912340,1745544955620,-2110.0,0.00048315,30]
[358912341,1745544955647,-500.0,0.00048329,30]
[358912342,1745544955883,-328.83713268,0.00048329,30]
[358912343,1745544955911,-150.0,0.00048329,30]
[358912344,1745544955937,-10000.0,0.000484,120]
[358912345,1745544955964,-250.0,0.00048493,120]
[358912346,1745544955990,-5723.82158,0.000485,120]
[358912347,1745544956015,-255.18692304,0.000485,120]
[358912348,1745544956040,-10000.0,0.000485,120]
[358912349,1745544956063,-500.0,0.00048548,30]
[358912350,1745544956088,-152.0,0.00048594,30]
[358912351,1745544956114,-10000.0,0.000486,120]
[358912352,1745544956139,-513.51157489,0.000486,120]
[358912353,1745544956166,-3592.49,0.00048635,120]
[358912354,1745544956191,-150.0,0.00048658,120]
[358912355,1745544956216,-10000.0,0.000487,120]
[358912356,1745544956241,-1703.0,0.00048782,30]
[358912357,1745544956266,-2110.0,0.00048815,30]
[358912358,1745544956292,-500.0,0.00048822,30]
[358912359,1745544956316,-150.0,0.00048822,30]
[358912360,1745544956341,-152.0,0.00049,31]
[358912361,1745544956366,-200.0,0.00049,88]
[358912362,1745544956392,-200.0,0.00049,88]
[358912363,1745544956418,-3281.58097665,0.00049,120]
[358912364,1745544956442,-10000.0,0.00049,120]
[358912365,1745544956467,-742.38570911,0.00049,120]
[358912366,1745544956491,-179.63270912,0.00049,120]
[358912367,1745544956516,-435.37805651,0.00049,30]
[358912368,1745544956541,-1000.0,0.00049,120]
[358912369,1745544956567,-1800.0,0.00049,50]
[358912370,1745544956592,-500.0,0.00049,30]
[358912371,1745544956617,-200.0,0.00049,88]
[358912372,1745544956642,-150.0,0.00049035,30]
[358912373,1745544956669,-500.0,0.00049096,30]
[358912374,1745544956694,-217.91095958,0.000491,30]
[358912375,1745544956721,-705.44781874,0.000491,33]
[358912376,1745544956748,-397.80101665,0.000491,30]
[358912377,1745544956776,-2822.1835515,0.00049278,40]
[358912378,1745544956806,-211.0,0.0004931,30]
[358912379,1745544956831,-211.0,0.0004931,30]
[358912380,1745544956857,-211.0,0.0004931,30]
[358912381,1745544956885,-211.0,0.0004931,30]
[358912382,1745544956912,-1221.92444572,0.00049312,120]
[358912383,1745544956938,-1071.0,0.00049315,30]
[358912384,1745544956964,-1071.0,0.00049315,30]
[358912385,1745544956989,-500.0,0.00049315,120]
[358912386,1745544957013,-502.49335288,0.00049315,30]
[358912387,1745544957039,-1132.194193,0.00049315,30]
[358912388,1745544957062,-164.203445,0.00049315,30]
[358912389,1745544957087,-506.6314527,0.00049315,30]
[358912390,1745544957112,-162.96537,0.00049315,30]
[358912391,1745544957138,-9063.631094,0.00049315,30]
[358912392,1745544957163,-500.0,0.00049315,30]
[358912393,1745544957188,-500.0,0.00049315,30]
[358912394,1745544957213,-500.0,0.00049315,30]
[358912395,1745544957239,-500.0,0.00049315,30]
[358912396,1745544957265,-500.0,0.00049315,30]
[358912397,1745544957291,-500.0,0.00049315,30]
[358912398,1745544957316,-1167.008109,0.00049315,30]
[358912399,1745544957343,-500.0,0.00049315,30]
[358912400,1745544957369,-500.0,0.00049315,30]
[358912401,1745544957394,-500.0,0.00049315,30]
[358912402,1745544957418,-500.0,0.00049315,30]
[358912403,1745544957444,-500.0,0.00049315,30]
[358912404,1745544957471,-500.0,0.00049315,30]
[358912405,1745544957497,-500.0,0.00049315,30]
[358912406,1745544957523,-2110.0,0.00049315,30]
[358912407,1745544957548,-351.10231383,0.00049315,30]
[358912408,1745544957573,-500.0,0.00049315,30]
[358912409,1745544957598,-500.0,0.00049315,30]
[358912410,1745544957624,-500.0,0.00049315,30]
[358912411,1745544957649,-500.0,0.00049315,30]
[358912412,1745544957674,-500.0,0.00049315,30]
[358912413,1745544957699,-500.0,0.00049315,30]
[358912414,1745544957725,-500.0,0.00049315,30]
[358912415,1745544957750,-901.79,0.00049315,30]
[358912416,1745544957780,-2000.0,0.00049315,30]
[358912417,1745544957808,-636.08,0.00049315,30]
[358912418,1745544957835,-1583.15,0.00049315,30]
[358912419,1745544957860,-500.0,0.00049315,30]
[358912420,1745544957886,-508.45832127,0.00049315,30]
[358912421,1745544957911,-862.05,0.00049315,30]
[358912422,1745544957935,-229.89592913,0.00049315,30]
[358912423,1745544957960,-500.0,0.00049315,30]
[358912424,1745544957985,-500.0,0.00049315,30]
[358912425,1745544958010,-500.0,0.00049315,30]
[358912426,1745544958038,-500.0,0.00049315,30]
[358912427,1745544958064,-553.83356143,0.00049315,30]
[358912428,1745544958090,-500.0,0.00049315,30]
[358912429,1745544958115,-500.0,0.00049315,30]
[358912430,1745544958140,-511.97780478,0.00049315,30]
[358912431,1745544958166,-548.18,0.00049315,30]
[358912432,1745544958191,-726.53,0.00049315,30]
[358912433,1745544958217,-500.0,0.00049315,30]
[358912434,1745544958240,-515.90486639,0.00049315,30]
[358912435,1745544958264,-500.0,0.00049315,30]
[358912436,1745544958291,-508.85255631,0.00049315,30]
[358912437,1745544958316,-500.0,0.00049315,30]
[358912438,1745544958340,-529.50781649,0.00049315,30]
[358912439,1745544958364,-500.0,0.00049315,30]
[358912440,1745544958389,-500.0,0.00049315,30]
[358912441,1745544958414,-500.0,0.00049315,30]
[358912442,1745544958440,-526.35112197,0.00049315,30]
[358912443,1745544958467,-508.53823312,0.00049315,30]
[358912444,1745544958494,-500.0,0.00049315,30]
[358912445,1745544958523,-567.07994116,0.00049315,30]
[358912446,1745544958550,-500.0,0.00049315,30]
[358912447,1745544958820,-500.0,0.00049315,30]
[358912448,1745544958847,-500.0,0.00049315,30]
[358912449,1745544958873,-500.0,0.00049315,30]
[358912450,1745544958898,-500.0,0.00049315,30]
[358912451,1745544958923,-500.0,0.00049315,30]
[358912452,1745544958950,-500.0,0.00049315,30]
[358912453,1745544958977,-500.0,0.00049315,30]
[358912454,1745544959004,-1895.68,0.00049315,30]
[358912455,1745544959032,-500.0,0.00049315,30]
[358912456,1745544959057,-500.0,0.00049315,30]
[358912457,1745544959082,-500.0,0.00049315,30]
[358912458,1745544959107,-500.0,0.00049315,30]
[358912459,1745544959134,-500.0,0.00049315,30]
[358912460,1745544959159,-500.0,0.00049315,30]
[358912461,1745544959185,-500.0,0.00049315,30]
[358912462,1745544959211,-500.0,0.00049315,30]
[358912463,1745544959236,-817.73,0.00049315,30]
[358912464,1745544959261,-534.22,0.00049315,30]
[358912465,1745544959288,-500.0,0.00049315,30]
[358912466,1745544959314,-500.0,0.00049315,30]
[358912467,1745544959339,-567.09,0.00049315,30]
[358912468,1745544959365,-538.93896355,0.00049315,30]
[358912469,1745544959391,-500.0,0.00049315,30]
[358912470,1745544959416,-500.0,0.00049315,30]
[358912471,1745544959442,-500.0,0.00049315,30]
[358912472,1745544959467,-500.0,0.00049315,30]
[358912473,1745544959493,-500.0,0.00049315,30]
[358912474,1745544959520,-991.06,0.00049315,30]
[358912475,1745544959545,-500.0,0.00049315,30]
[358912476,1745544959569,-500.0,0.00049315,30]
[358912477,1745544959595,-531.80495963,0.00049315,30]
[358912478,1745544959619,-500.0,0.00049315,30]
[358912479,1745544959645,-500.0,0.00049315,30]
[358912480,1745544959669,-512.60086801,0.00049315,30]
[358912481,1745544959694,-500.0,0.00049315,30]
[358912482,1745544959718,-500.0,0.00049315,30]
[358912483,1745544959743,-500.0,0.00049315,30]
[358912484,1745544959770,-500.0,0.00049315,30]
[358912485,1745544959797,-512.91052057,0.00049315,30]
[358912486,1745544959822,-500.0,0.00049315,30]
[358912487,1745544959848,-500.0,0.00049315,30]
[358912488,1745544959874,-500.0,0.00049315,30]
[358912489,1745544959899,-500.0,0.00049315,30]
[358912490,1745544959924,-191.18329376,0.00049315,30]
[358912491,1745544959950,-500.0,0.00049315,30]
[358912492,1745544959977,-500.0,0.00049315,30]
[358912493,1745544960003,-500.0,0.00049315,30]
[358912494,1745544960030,-500.0,0.00049315,30]
[358912495,1745544960056,-620.93155152,0.00049315,30]
[358912496,1745544960081,-500.0,0.00049315,30]
[358912497,1745544960108,-500.0,0.00049315,30]
[358912498,1745544960134,-500.0,0.00049315,30]
[358912499,1745544960160,-500.0,0.00049315,30]
[358912500,1745544960186,-510.99154978,0.00049315,30]
[358912501,1745544960212,-500.0,0.00049315,30]
[358912502,1745544960237,-509.02531462,0.00049315,30]
[358912503,1745544960262,-500.0,0.00049315,30]
[358912504,1745544960288,-501.95354732,0.00049315,30]
[358912505,1745544960314,-500.0,0.00049315,30]
[358912506,1745544960339,-500.0,0.00049315,30]
[358912507,1745544960363,-868.58,0.00049315,30]
[358912508,1745544960387,-500.0,0.00049315,30]
[358912509,1745544960411,-527.04084016,0.00049315,30]
[358912510,1745544960436,-500.0,0.00049315,30]
[358912511,1745544960461,-500.0,0.00049315,30]
[358912512,1745544960486,-509.80082711,0.00049315,30]
[358912513,1745544960511,-500.0,0.00049315,30]
[358912514,1745544960538,-500.0,0.00049315,120]
[358912515,1745544960563,-500.0,0.00049315,30]
[358912516,1745544960589,-500.0,0.00049315,30]
[358912517,1745544960616,-500.0,0.00049315,30]
[358912518,1745544960640,-500.0,0.00049315,30]
[358912519,1745544960665,-500.0,0.00049315,30]
[358912520,1745544960691,-1131.21,0.00049315,30]
[358912521,1745544960716,-500.0,0.00049315,30]
[358912522,1745544960741,-524.22428135,0.00049315,30]
[358912523,1745544960765,-500.0,0.00049315,30]
[358912524,1745544960794,-500.0,0.00049315,30]
[358912525,1745544960819,-500.0,0.00049315,30]
[358912526,1745544960843,-500.0,0.00049315,30]
[358912527,1745544960869,-500.0,0.00049315,30]
[358912528,1745544960894,-500.0,0.00049315,30]
[358912529,1745544960918,-513.00141483,0.00049315,30]
[358912530,1745544960945,-500.0,0.00049315,30]
[358912531,1745544960970,-535.88551926,0.00049315,30]
[358912532,1745544960995,-516.72219197,0.00049315,30]
[358912533,1745544961021,-527.74247317,0.00049315,30]
[358912534,1745544961045,-500.0,0.00049315,30]
[358912535,1745544961070,-500.0,0.00049315,30]
[358912536,1745544961096,-500.0,0.00049315,30]
[358912537,1745544961122,-500.0,0.00049315,30]
[358912538,1745544961147,-500.0,0.00049315,30]
[358912539,1745544961173,-500.0,0.00049315,30]
[358912540,1745544961198,-500.0,0.00049315,30]
[358912541,1745544961222,-500.0,0.00049315,30]
[358912542,1745544961246,-500.0,0.00049315,30]
[358912543,1745544961272,-500.0,0.00049315,30]
[358912544,1745544961296,-266.17346774,0.00049315,30]
[358912545,1745544961320,-1200.59,0.00049315,30]
[358912546,1745544961344,-529.42433398,0.00049315,30]
[358912547,1745544961367,-500.0,0.00049315,30]
[358912548,1745544961393,-500.0,0.00049315,30]
[358912549,1745544961417,-222.23023183,0.00049315,30]
[358912550,1745544961442,-500.0,0.00049315,30]
[358912551,1745544961468,-500.0,0.00049315,30]
[358912552,1745544961713,-500.0,0.00049315,30]
[358912553,1745544961741,-500.0,0.00049315,30]
[358912554,1745544961767,-559.08598478,0.00049315,30]
[358912555,1745544961792,-500.0,0.00049315,30]
[358912556,1745544961817,-500.0,0.00049315,30]
[358912557,1745544961842,-500.0,0.00049315,30]
[358912558,1745544961868,-527.49183362,0.00049315,30]
[358912559,1745544961893,-683.46,0.00049315,30]
[358912560,1745544961918,-655.05,0.00049315,30]
[358912561,1745544961943,-500.0,0.00049315,30]
[358912562,1745544961969,-500.0,0.00049315,30]
[358912563,1745544961994,-552.86,0.00049315,30]
[358912564,1745544962018,-558.84710735,0.00049315,30]
[358912565,1745544962043,-500.0,0.00049315,30]
[358912566,1745544962067,-500.0,0.00049315,30]
[358912567,1745544962091,-500.0,0.00049315,30]
[358912568,1745544962115,-500.0,0.00049315,30]
[358912569,1745544962140,-500.0,0.00049315,30]
[358912570,1745544962165,-500.0,0.00049315,30]
[358912571,1745544962191,-500.0,0.00049315,30]
[358912572,1745544962219,-500.0,0.00049315,30]
[358912573,1745544962248,-500.0,0.00049315,30]
[358912574,1745544962276,-500.0,0.00049315,30]
[358912575,1745544962301,-516.02492469,0.00049315,30]
[358912576,1745544962326,-500.0,0.00049315,30]
[358912577,1745544962352,-500.0,0.00049315,30]
[358912578,1745544962379,-537.4932982,0.00049315,30]
[358912579,1745544962405,-516.20538319,0.00049315,30]
[358912580,1745544962430,-500.0,0.00049315,30]
[358912581,1745544962455,-500.0,0.00049315,30]
[358912582,1745544962480,-500.0,0.00049315,30]
[358912583,1745544962505,-500.0,0.00049315,30]
[358912584,1745544962530,-518.41469884,0.00049315,30]
[358912585,1745544962555,-500.0,0.00049315,30]
[358912586,1745544962580,-500.0,0.00049315,30]
[358912587,1745544962604,-515.36623595,0.00049315,30]
[358912588,1745544962629,-500.0,0.00049315,30]
[358912589,1745544962654,-500.0,0.00049315,30]
[358912590,1745544962679,-500.0,0.00049315,30]
[358912591,1745544962702,-1000.0,0.00049315,30]
[358912592,1745544962727,-500.0,0.00049315,30]
[358912593,1745544962752,-161.42466515,0.00049315,30]
[358912594,1745544962778,-500.0,0.00049315,30]
[358912595,1745544962806,-500.0,0.00049315,30]
[358912596,1745544962831,-500.0,0.00049315,30]
[358912597,1745544962859,-543.50724083,0.00049315,30]
[358912598,1745544962887,-514.36651468,0.00049315,30]
[358912599,1745544962911,-500.0,0.00049315,30]
[358912600,1745544962936,-500.0,0.00049315,30]
[358912601,1745544962963,-617.6,0.00049315,30]
[358912602,1745544962988,-734.47,0.00049315,30]
[358912603,1745544963015,-500.0,0.00049315,30]
[358912604,1745544963043,-500.0,0.00049315,30]
[358912605,1745544963068,-500.0,0.00049315,30]
[358912606,1745544963094,-500.0,0.00049315,30]
[358912607,1745544963121,-500.0,0.00049315,30]
[358912608,1745544963147,-500.0,0.00049315,30]
[358912609,1745544963172,-500.0,0.00049315,30]
[358912610,1745544963199,-500.0,0.00049315,30]
[358912611,1745544963224,-500.0,0.00049315,30]
[358912612,1745544963250,-500.0,0.00049315,30]
[358912613,1745544963277,-880.85,0.00049315,30]
[358912614,1745544963303,-500.0,0.00049315,30]
[358912615,1745544963330,-500.0,0.00049315,30]
[358912616,1745544963356,-500.0,0.00049315,30]
[358912617,1745544963382,-500.0,0.00049315,30]
[358912618,1745544963408,-500.0,0.00049315,30]
[358912619,1745544963435,-500.0,0.00049315,30]
[358912620,1745544963461,-500.0,0.00049315,30]
[358912621,1745544963489,-500.0,0.00049315,30]
[358912622,1745544963517,-501.00307564,0.00049315,30]
[358912623,1745544963548,-500.0,0.00049315,30]
[358912624,1745544963575,-500.0,0.00049315,30]
[358912625,1745544963603,-792.98,0.00049315,30]
[358912626,1745544963630,-1118.34,0.00049315,30]
[358912627,1745544963657,-500.0,0.00049315,30]
[358912628,1745544963684,-500.0,0.00049315,30]
[358912629,1745544963712,-500.0,0.00049315,30]
[358912630,1745544963741,-500.0,0.00049315,30]
[358912631,1745544963768,-512.86970504,0.00049315,30]
[358912632,1745544963799,-500.0,0.00049315,30]
[358912633,1745544963827,-500.0,0.00049315,30]
[358912634,1745544963855,-666.45,0.00049315,30]
[358912635,1745544963883,-500.0,0.00049315,30]
[358912636,1745544963908,-500.0,0.00049315,30]
[358912637,1745544963934,-500.0,0.00049315,30]
[358912638,1745544963961,-500.0,0.00049315,30]
[358912639,1745544963987,-500.0,0.00049315,30]
[358912640,1745544964013,-500.0,0.00049315,30]
[358912641,1745544964041,-500.0,0.00049315,30]
[358912642,1745544964068,-500.0,0.00049315,30]
[358912643,1745544964096,-981.87,0.00049315,30]
[358912644,1745544964122,-500.0,0.00049315,30]
[358912645,1745544964148,-500.0,0.00049315,30]
[358912646,1745544964173,-529.49786081,0.00049315,30]
[358912647,1745544964199,-500.0,0.00049315,30]
[358912648,1745544964225,-500.0,0.00049315,30]
[358912649,1745544964251,-500.0,0.00049315,30]
[358912650,1745544964277,-500.0,0.00049315,30]
[358912651,1745544964304,-508.78924313,0.00049315,30]
[358912652,1745544964330,-500.0,0.00049315,30]
[358912653,1745544964356,-500.0,0.00049315,30]
[358912654,1745544964382,-500.0,0.00049315,30]
[358912655,1745544964409,-500.0,0.00049315,30]
[358912656,1745544964436,-615.72467512,0.00049315,30]
[358912657,1745544964464,-500.0,0.00049315,30]
[358912658,1745544964700,-513.33217443,0.00049315,30]
[358912659,1745544964727,-500.0,0.00049315,30]
[358912660,1745544964754,-529.38,0.00049315,30]
[358912661,1745544964781,-544.34859773,0.00049315,30]
[358912662,1745544964811,-500.0,0.00049315,30]
[358912663,1745544964837,-500.0,0.00049315,30]
[358912664,1745544964863,-500.0,0.00049315,30]
[358912665,1745544964893,-500.0,0.00049315,30]
[358912666,1745544964920,-530.37148421,0.00049315,30]
[358912667,1745544964946,-500.0,0.00049315,30]
[358912668,1745544964972,-500.0,0.00049315,30]
[358912669,1745544964998,-500.0,0.00049315,30]
[358912670,1745544965024,-500.0,0.00049315,30]
[358912671,1745544965049,-500.0,0.00049315,30]
[358912672,1745544965075,-500.0,0.00049315,30]
[358912673,1745544965100,-500.0,0.00049315,30]
[358912674,1745544965125,-500.0,0.00049315,30]
[358912675,1745544965151,-500.0,0.00049315,30]
[358912676,1745544965176,-500.0,0.00049315,30]
[358912677,1745544965204,-500.0,0.00049315,30]
[358912678,1745544965230,-500.0,0.00049315,30]
[358912679,1745544965254,-500.0,0.00049315,30]
[358912680,1745544965281,-1189.04,0.00049315,30]
[358912681,1745544965307,-572.67840576,0.00049315,30]
[358912682,1745544965332,-500.0,0.00049315,30]
[358912683,1745544965357,-500.0,0.00049315,30]
[358912684,1745544965383,-500.0,0.00049315,30]
[358912685,1745544965408,-555.23,0.00049315,30]
[358912686,1745544965434,-500.0,0.00049315,30]
[358912687,1745544965459,-500.0,0.00049315,30]
[358912688,1745544965485,-500.0,0.00049315,30]
[358912689,1745544965512,-500.0,0.00049315,30]
[358912690,1745544965540,-500.0,0.00049315,30]
[358912691,1745544965566,-500.0,0.00049315,30]
[358912692,1745544965591,-506.21967073,0.00049315,30]
[358912693,1745544965616,-500.0,0.00049315,30]
[358912694,1745544965641,-500.0,0.00049315,30]
[358912695,1745544965666,-500.0,0.00049315,30]